[Event "8th Svetozar Gligoric Cup 2022"]
[Site "Paracin"]
[Date "2022.06.02"]
[Round "4.7"]
[White "Saric, Sinisa"]
[Black "Adzic, Momcilo"]
[Result "1-0"]
[ECO "D36"]
[WhiteElo "2411"]
[BlackElo "2203"]
[Annotator "TA"]
[PlyCount "65"]
[EventDate "2022.05.31"]
[EventType "team-tourn"]
[EventCountry "SRB"]
[SourceTitle "playchess.com"]
[Source "ChessBase"]
[SourceQuality "1"]
[TimeControl "40/5400+30:900+30"]

{[%evp 20,65,28,20,18,-8,91,122,191,180,186,187,178,168,280,264,267,279,267,266,308,255,293,294,321,317,304,318,466,449,479,435,616,634,643,634,1074,1091,1285,1229,2862,2530,12837,12837,29986,29987,29986,7608]} 1. d4 {[%emt 0:00:03]} Nf6 {[%emt 0:00:22]} 2. c4 {[%emt 0:00:10]} e6 {[%emt 0:00:29]} 3. Nc3 {[%emt 0:00:15]} d5 {[%emt 0:00:50]} 4. cxd5 {[%emt 0:00:33]} exd5 {[%emt 0:00:18]} 5. Bg5 {[%emt 0:00:11]} c6 {[%emt 0:00:25]} 6. Qc2 {[%emt 0:00:36]} Nbd7 {[%emt 0:01:03]} 7. e3 {[%emt 0:00:28]} Bd6 {[%emt 0:01:21]} 8. Bd3 {[%emt 0:01:07]} h6 {[%emt 0:00:23]} 9. Bh4 {[%emt 0:00:44]} O-O {[%emt 0:01:04]} 10. Nge2 {[%emt 0:09:44]} Re8 {[%emt 0:00:43]} 11. h3 {[%emt 0:00:55]} Qe7 {[%emt 0:04:25] D36: Queen's Gambit Declined: Exchange Variation: Main line (5 Bg5 c6 6 Qc2).} 12. g4 {[%emt 0:10:22] [#]} g5 $146 {[%emt 0:02:21]} (12... b5 $11 {remains equal.}) ({Predecessor:} 12... Nf8 13. O-O-O Ne6 14. Kb1 Ng5 15. Bg3 Nge4 16. Bxe4 dxe4 17. Bh4 g5 18. Bg3 Be6 19. Bxd6 Qxd6 {1-0 (38) Kirdar,M-Albayrak,M (1818) Antalya 2013}) 13. Bg3 $16 {[%emt 0:00:21]} Ne4 {[%emt 0:00:36]} (13... Bb8 $16) 14. Bxe4 $18 {[%emt 0:05:04]} dxe4 {[%emt 0:00:43]} 15. Bxd6 {[%emt 0:00:23]} Qxd6 {[%emt 0:00:09]} 16. Nxe4 {[%emt 0:01:25]} Rxe4 {[%emt 0:04:29]} (16... Qg6 {keeps fighting.}) 17. Qxe4 {[%emt 0:01:13]} Qb4+ {[%emt 0:00:11]} 18. Kf1 {[%emt 0:00:22]} Qxb2 {[%emt 0:00:44]} 19. Qb1 {[%emt 0:08:49]} Qd2 {[%emt 0:03:46]} 20. Qb3 {[%emt 0:02:09]} Qa5 {[%emt 0:01:42]} 21. f3 {[%emt 0:02:58]} b6 {[%emt 0:03:24]} 22. Kf2 {[%emt 0:53:38]} Ba6 {[%emt 0:03:41]} 23. Qc3 {[%emt 0:00:00]} Qb5 {[%emt 0:02:34]} (23... Qxc3 {was worth a try.} 24. Nxc3 Rd8) 24. Ng3 {[%emt 0:01:00]} Re8 {[%emt 0:06:26]} 25. a4 {[%emt 0:00:00]} Qd5 {[%emt 0:00:28]} (25... Qd3 $142 26. Qxd3 Bxd3) 26. e4 {[%emt 0:01:00]} Qe6 {[%emt 1:00:53]} 27. h4 {[%emt 0:00:00]} Nf6 {[%emt 0:00:00]} 28. hxg5 {[%emt 0:00:00]} hxg5 {[%emt 0:00:00]} 29. Qe3 {[%emt 0:00:00]} Nh7 {[%emt 0:00:00] [#]} 30. Rxh7 $1 {[%emt 0:00:00][%cal Og3f5][%mdl 512] White threatens Nf5! and mate.} Kxh7 {[%emt 0:00:00]} (30... f6 31. Rxa7) 31. Qxg5 {[%emt 0:00:00] White wants to mate with Rh1+.} Qg6 {[%emt 0:00:00]} 32. Rh1+ {[%emt 0:00:00]} Kg8 {[%emt 0:00:00]} 33. Qh4 {[%emt 0:03:30] White took control after the opening.  Weighted Error Value: White=0.09 (flawless) /Black=0.80} 1-0

[Event "8th Svetozar Gligoric Cup 2022"]
[Site "Paracin"]
[Date "2022.06.02"]
[Round "4.8"]
[White "Vuksanovic, Zvezdan"]
[Black "Vratonjic, Slobo"]
[Result "1/2-1/2"]
[ECO "A36"]
[WhiteElo "2187"]
[BlackElo "2254"]
[Annotator "TA"]
[PlyCount "44"]
[EventDate "2022.05.31"]
[EventType "team-tourn"]
[EventCountry "SRB"]
[SourceTitle "playchess.com"]
[Source "ChessBase"]
[SourceQuality "1"]
[TimeControl "40/5400+30:900+30"]

{[%evp 16,44,0,0,0,0,0,-10,0,0,0,0,0,0,14,19,33,20,54,25,46,53,59,56,69,32,55,21,40,22,42]} 1. Nf3 {[%emt 0:00:11]} c5 {[%emt 0:00:13]} 2. c4 {[%emt 0:00:11]} Nc6 {[%emt 0:00:09]} 3. g3 {[%emt 0:00:19]} g6 {[%emt 0:00:09]} 4. Bg2 {[%emt 0:00:10]} Bg7 {[%emt 0:00:14]} 5. O-O {[%emt 0:00:19]} d6 {[%emt 0:02:26]} 6. d3 {[%emt 0:00:11]} e6 {[%emt 0:00:29]} 7. Nc3 {[%emt 0:00:24]} Nge7 {[%emt 0:00:11][%cal Bg8e7,Be7c6,Bc6e5][%mdl 32]} 8. e4 {[%emt 0:04:45]} O-O {[%emt 0:03:04]} 9. Be3 {[%emt 0:00:51]} Nd4 {[%emt 0:00:45] A36: Symmetrical English vs ...g6: 4 Bg2 Bg7.} 10. Qd2 {[%emt 0:02:12]} Nec6 {[%emt 0:00:25]} 11. Bh6 {[%emt 0:00:58]} Nxf3+ {[%emt 0:07:14]} 12. Bxf3 {[%emt 0:00:08]} Ne5 {[%emt 0:00:13]} 13. Be2 {[%emt 0:00:27]} Bxh6 {[%emt 0:00:07]} 14. Qxh6 {[%emt 0:00:03]} f5 {[%emt 0:00:13] [#]} 15. f4 $146 {[%emt 0:00:41]} ({Predecessor:} 15. Qe3 Bd7 16. Rad1 Nc6 17. Nb5 Qe7 18. d4 a6 19. dxc5 axb5 20. cxb5 f4 21. gxf4 {1-0 (66) Zeynalov,F (2280)-Kekelidze,M (2520) Baku 2006}) 15... Nf7 {[%emt 0:00:14]} 16. Qh3 {[%emt 0:01:37]} Bd7 {[%emt 0:00:43]} 17. Qg2 {[%emt 0:01:01]} (17. exf5 {is more complex.} gxf5 18. g4 Qf6 19. gxf5 exf5 20. Nd5) 17... Bc6 {[%emt 0:01:53]} 18. Bf3 {[%emt 0:00:39]} Rc8 {[%emt 0:00:19]} 19. Rae1 {[%emt 0:03:35]} Qf6 {[%emt 0:01:15]} 20. Qf2 {[%emt 0:00:49]} Rfe8 {[%emt 0:05:09]} 21. Kg2 {[%emt 0:01:42]} Re7 {[%emt 0:02:24]} 22. Re2 {[%emt 0:09:16]} Rce8 {[%emt 0:08:34] Weighted Error Value: White=0.09 (flawless) /Black=0.11 (very precise)} 1/2-1/2

[Event "8th Svetozar Gligoric Cup 2022"]
[Site "Paracin"]
[Date "2022.06.02"]
[Round "4.9"]
[White "Maksimovic, Bojan"]
[Black "Pavkov, Nebojsa"]
[Result "1-0"]
[ECO "A41"]
[WhiteElo "2445"]
[BlackElo "2207"]
[Annotator "TA"]
[PlyCount "72"]
[EventDate "2022.05.31"]
[EventType "team-tourn"]
[EventCountry "SRB"]
[SourceTitle "playchess.com"]
[Source "ChessBase"]
[SourceQuality "1"]
[TimeControl "40/5400+30:900+30"]

{[%evp 9,72,30,48,37,59,39,45,44,47,51,55,64,96,68,64,30,67,34,53,45,78,75,68,66,64,70,66,60,94,92,89,62,120,95,80,87,87,42,83,86,85,95,75,91,164,167,484,497,539,535,537,521,517,510,561,567,722,539,4882,528,1562,1391,29986,5314,2211]} 1. d4 {[%emt 0:00:03]} d6 {[%emt 0:03:23]} 2. Nf3 {[%emt 0:01:09]} g6 {[%emt 0:00:31]} 3. c4 {[%emt 0:01:15]} Bg7 {[%emt 0:01:21]} 4. Nc3 {[%emt 0:00:22]} Nc6 {[%emt 0:01:36]} 5. d5 {[%emt 0:00:26]} Nb8 {[%emt 0:00:21][%cal Bc6b8,Bb8d7,Bd7c5][%mdl 32]} 6. e4 {[%emt 0:00:31] A41: 1 d4 d6: Tartakower System and Modern Defence.} Nf6 {[%emt 0:00:32]} 7. h3 {[%emt 0:01:24]} Nbd7 {[%emt 0:00:30]} 8. Bd3 {[%emt 0:02:00] White is slightly better.} Nc5 {[%emt 0:00:24]} 9. Bc2 {[%emt 0:01:43]} O-O {[%emt 0:01:06]} 10. Be3 {[%emt 0:00:21]} a5 {[%emt 0:03:22]} 11. O-O {[%emt 0:01:53]} Nfd7 {[%emt 0:01:09] [#]} 12. Re1 $146 {[%emt 0:04:24]} ({Predecessor:} 12. Bd4 e5 13. dxe6 Nxe6 14. Bxg7 Kxg7 15. Nd5 Ne5 16. Nd4 c6 17. f4 Nxc4 18. Nxe6+ Bxe6 {½-½ (67) Abdusattorova,B (2232)-Hotami,M (1714) Dushanbe 2015}) 12... Nb6 {[%emt 0:02:21]} 13. Bd4 {[%emt 0:00:52]} Bxd4 {[%emt 0:00:31]} 14. Qxd4 {[%emt 0:00:09] Hoping for e5.} (14. Nxd4 Nxc4 15. Qe2 Nb6 $15) 14... f6 {[%emt 0:02:44] Against e5} 15. b3 {[%emt 0:13:32]} Nbd7 {[%emt 0:03:17]} 16. Qd2 {[%emt 0:00:18]} (16. Nh4 {feels hotter.} g5 17. Nf5 e6 18. dxe6 Nxe6 19. Qe3) 16... e5 {[%emt 0:01:53]} 17. dxe6 {[%emt 0:00:22]} Nxe6 {[%emt 0:01:50]} 18. Rad1 {[%emt 0:01:03]} Qe7 {[%emt 0:04:24]} 19. Nd5 {[%emt 0:01:13]} Qg7 {[%emt 0:00:44]} 20. Nh2 {[%emt 0:01:51]} Nb8 {[%emt 0:11:03]} (20... g5 $14) 21. Ng4 {[%emt 0:03:35]} Nc6 {[%emt 0:01:22]} 22. Qc3 {[%emt 0:03:21] 0x0.0020625a6de0dp-1022s more active pieces. The black rooks are badly placed.} Ne5 {[%emt 0:01:08]} 23. Nge3 {[%emt 0:01:01] Threatens to win with f4.} Qh6 {[%emt 0:18:31] Inhibits f4.} 24. f4 {[%emt 0:20:03]} Nxf4 {[%emt 0:07:01]} 25. Nxf4 {[%emt 0:00:11][%mdl 64] Remove Defender} (25. Nxc7 Qg5 $1 26. Ng4 (26. Nxa8 $2 Qg3 $19) (26. Rxd6 $2 Qg3 $19) 26... Bxg4 27. hxg4 Nxg4 $1 $17) 25... Qxf4 {[%emt 0:00:04]} 26. Nd5 {[%emt 0:00:07][%csl LRc7,LRf4]} Qh4 {[%emt 0:00:26]} (26... Qg5 $16) 27. Nxc7 $18 {[%emt 0:00:21]} f5 $2 {[%emt 0:02:03]} (27... Rb8 28. Rf1 (28. Rxd6 Nf3+ 29. Qxf3 Qxe1+ 30. Kh2 Kg7 $11) 28... Rf7) 28. exf5 {[%emt 0:01:01]} (28. Nxa8 f4 $18) 28... Bxf5 {[%emt 0:00:15]} 29. Bxf5 {[%emt 0:05:21]} Rxf5 {[%emt 0:00:06] [#]} 30. Rxe5 {[%emt 0:02:02]} ({Stronger than} 30. Nxa8 Nf3+ 31. Kh1 (31. gxf3 Qg3+ 32. Kf1 Rxf3+ 33. Qxf3 Qxf3+ 34. Kg1 Qg3+ 35. Kf1 Qf3+ 36. Kg1 Qg3+ 37. Kf1 Qf3+ $11) 31... Qg3 32. Qxf3 (32. gxf3 Qxh3+ 33. Kg1 Qg3+ 34. Kf1 Rxf3+ 35. Qxf3 Qxf3+ 36. Kg1 Qg4+ 37. Kf2 Qf5+ 38. Kg2 Qg4+ 39. Kh2 Qh5+ 40. Kg3 Qg5+ 41. Kf3 Qd8 $11) (32. Re8+ $2 Kf7 $19) 32... Rxf3 33. gxf3 Qxh3+ 34. Kg1 Qg3+ 35. Kh1 Qxf3+ 36. Kh2 Qf4+ 37. Kh3 Qf3+ 38. Kh2 Qf4+ 39. Kh3 Qf3+ 40. Kh2 $11) 30... Qf2+ {[%emt 0:10:14]} 31. Kh1 {[%emt 0:00:30]} dxe5 {[%emt 0:01:24]} 32. Nxa8 {[%emt 0:00:12]} g5 {[%emt 0:03:09]} 33. Qd2 {[%emt 0:00:45]} Qg3 {[%emt 0:01:58]} 34. Qd3 {[%emt 0:01:00]} Qf4 {[%emt 0:00:24]} 35. Nc7 {[%emt 0:00:23] Ne6 would kill now.} g4 {[%emt 0:00:55]} 36. Nd5 {[%emt 0:00:12]} (36. Ne6 $142 e4 37. Qd8+ Rf8 38. Nxf8 Qxf8 39. Qg5+ Kh8 40. Rd8 Qxd8 41. Qxd8+ Kg7 42. Qe7+ Kg6 43. c5) 36... Qg5 {[%emt 0:00:19] Weighted Error Value: White=0.46/Black=0.64} 1-0

[Event "8th Svetozar Gligoric Cup 2022"]
[Site "Paracin"]
[Date "2022.06.02"]
[Round "4.10"]
[White "Cica, Dragan"]
[Black "Tadic, Stefan"]
[Result "0-1"]
[ECO "B40"]
[WhiteElo "2124"]
[BlackElo "2358"]
[Annotator "TA"]
[PlyCount "118"]
[EventDate "2022.05.31"]
[EventType "team-tourn"]
[EventCountry "SRB"]
[SourceTitle "playchess.com"]
[Source "ChessBase"]
[SourceQuality "1"]
[TimeControl "40/5400+30:900+30"]

{[%evp 9,118,0,-12,-27,0,-9,-12,-30,-14,-35,-31,-28,-26,-100,-66,-126,-125,-172,-159,-159,-154,-156,-160,-172,-150,-187,-185,-200,-176,-207,-202,-206,-199,-236,-190,-235,-227,-269,-193,-232,-224,-227,-222,-222,-227,-212,-223,-230,-229,-234,-199,-216,-231,-222,-188,-201,-195,-197,-192,-211,-202,-348,-296,-299,-279,-281,0,-234,-227,-590,-402,-373,-361,-429,-429,-388,-323,-347,-429,-440,-427,-443,-444,-358,-149,-247,-149,-163,-144,-650,-623,-8845,-8285,-6060,-4119,-29943,-29937,-29938,-12119,-29938,-29938,-29944,-12588,-7988,-7069,-5401,-3344,-6303,-5509,-4134,-1583]} 1. e4 {[%emt 0:01:02]} c5 {[%emt 0:00:06]} 2. Nf3 {[%emt 0:00:06]} e6 {[%emt 0:00:05]} 3. c3 {[%emt 0:01:43]} d5 {[%emt 0:00:06]} 4. e5 {[%emt 0:01:28]} d4 {[%emt 0:02:15]} 5. Bb5+ {[%emt 0:03:44]} Bd7 {[%emt 0:01:10]} 6. Qe2 {[%emt 0:06:02] B40: Sicilian: 2...e6, Unusual lines.} a6 {[%emt 0:04:16] [#]} 7. Bd3 $146 {[%emt 0:04:17]} ({Predecessor:} 7. Bxd7+ Qxd7 8. cxd4 cxd4 9. d3 Nc6 10. O-O Nge7 11. Bf4 Nd5 12. Bg3 Bb4 13. Nbd2 O-O {0-1 (66) Barjan Pinedo,J (2099)-De Jesus Rosa,M (2119) Santo Domingo 2018}) 7... Bc6 {[%emt 0:02:17]} 8. O-O {[%emt 0:03:53] The position is equal.} Ne7 {[%emt 0:00:52]} 9. Be4 {[%emt 0:04:25]} Bxe4 {[%emt 0:04:55]} 10. Qxe4 {[%emt 0:00:05]} Nbc6 {[%emt 0:00:06]} 11. b4 {[%emt 0:05:02]} (11. cxd4 $11 cxd4 12. b3) 11... Qd5 {[%emt 0:07:45]} 12. Re1 {[%emt 0:01:11]} (12. Qxd5 $15 Nxd5 13. bxc5) 12... cxb4 $17 {[%emt 0:06:18]} 13. Bb2 {[%emt 0:02:42]} (13. a3 $17) 13... dxc3 $19 {[%emt 0:05:50]} 14. dxc3 {[%emt 0:00:16]} Qxe4 {[%emt 0:00:05]} 15. Rxe4 {[%emt 0:00:09]} Nd5 {[%emt 0:00:03]} 16. cxb4 {[%emt 0:05:18]} Bxb4 {[%emt 0:01:14]} 17. Na3 {[%emt 0:00:25]} O-O {[%emt 0:01:14]} 18. Nc4 {[%emt 0:04:30]} Rfd8 {[%emt 0:04:24]} 19. g3 {[%emt 0:06:37]} b5 {[%emt 0:01:08]} 20. Ne3 {[%emt 0:01:32]} Bc3 {[%emt 0:02:41]} 21. Nd1 {[%emt 0:06:57]} Ba5 {[%emt 0:03:47]} 22. a3 {[%emt 0:05:48]} Nb6 {[%emt 0:00:58]} 23. Rc1 {[%emt 0:04:55]} Ne7 {[%emt 0:05:23]} ({Don't blunder} 23... Nc4 $2 24. Ne3 Nxb2 25. Rxc6 $19) 24. Ne3 {[%emt 0:02:40]} Rac8 {[%emt 0:01:40]} 25. Rxc8 {[%emt 0:13:17]} Rxc8 {[%emt 0:00:06]} ({Worse is} 25... Nexc8 26. Rd4 Na4 27. Ba1 $17) 26. Rd4 {[%emt 0:00:35]} Ned5 {[%emt 0:01:36]} 27. Nxd5 {[%emt 0:01:48]} Nxd5 {[%emt 0:00:06]} 28. Rd3 {[%emt 0:00:28]} h6 {[%emt 0:01:32]} 29. Nd4 {[%emt 0:02:38]} Bb6 {[%emt 0:00:02]} 30. Kg2 {[%emt 0:00:44]} Rc4 {[%emt 0:00:26]} 31. h4 {[%emt 0:00:44]} b4 {[%emt 0:01:37]} 32. axb4 {[%emt 0:02:53]} Rxb4 {[%emt 0:03:08]} 33. Nb3 {[%emt 0:01:44]} a5 {[%emt 0:01:00]} 34. Ba3 {[%emt 0:00:23]} Re4 {[%emt 0:02:47]} 35. f4 {[%emt 0:02:04]} (35. Bc5 {might work better.}) 35... Re2+ {[%emt 0:01:20]} 36. Kf3 {[%emt 0:00:27]} Rf2+ {[%emt 0:00:31]} 37. Ke4 {[%emt 0:00:37]} Re2+ {[%emt 0:04:13]} 38. Kf3 {[%emt 0:00:01]} Rc2 {[%emt 0:00:09]} 39. Ke4 $2 {[%emt 0:04:55]} (39. Nd2) 39... a4 {[%emt 0:03:36] Strongly threatening ...Nc3+.} 40. Nd2 {[%emt 0:00:00]} Ba5 {[%emt 0:00:00]} 41. Nb1 {[%emt 0:05:54]} Re2+ {[%emt 0:10:14]} 42. Kd4 {[%emt 0:01:48]} Re1 {[%emt 0:00:05]} 43. Nd2 {[%emt 0:00:36]} Bxd2 {[%emt 0:00:04]} 44. Rxd2 {[%emt 0:00:03][%mdl 4096] Endgame KRB-KRN} Re3 {[%emt 0:00:05]} 45. Rd3 {[%emt 0:00:16]} Rxd3+ {[%emt 0:01:43]} 46. Kxd3 {[%emt 0:00:04] KB-KN} g5 {[%emt 0:00:32]} (46... Kh7 $19 {has better winning chances. ...Kg6 is the strong threat.} 47. h5 g6 48. hxg6+ Kxg6) 47. hxg5 {[%emt 0:02:10]} (47. fxg5 $17 {was the only chance.} hxg5 48. Bc1) 47... hxg5 {[%emt 0:00:05]} 48. fxg5 {[%emt 0:00:38]} Kg7 {[%emt 0:00:06]} 49. Bc1 $2 {[%emt 0:01:50][%mdl 8192] White does not recover from this.} (49. Bb2 $17) 49... Kg6 {[%emt 0:00:11]} 50. g4 {[%emt 0:00:14]} Nb4+ {[%emt 0:03:40]} 51. Kc4 {[%emt 0:01:12]} Nc6 {[%emt 0:00:04]} 52. Bf4 {[%emt 0:00:11]} a3 $1 {[%emt 0:00:04]} 53. Kb3 {[%emt 0:00:13] [#]} Nb4 $1 {[%emt 0:00:05][%mdl 512] ( -> ...a2)} 54. Kxa3 {[%emt 0:00:56]} (54. Be3 a2) 54... Nd3 {[%emt 0:00:05][%mdl 64] Deflection} 55. Bh2 {[%emt 0:00:18]} Nf2 {[%emt 0:00:04]} (55... Kxg5 $142 56. Kb3 Kxg4 57. Kc3 Ne1 58. Bg1 Nf3 59. Bb6 Nxe5 60. Kb4 f5 61. Kb5 f4 62. Bg1 Kg3 63. Bc5 f3 64. Bd6 Kf4 65. Bc5 Nd3 66. Be7 f2 67. Bd6+ Ne5 68. Bf8 f1=Q+ 69. Ka5 Qd3 70. Kb4 Ke4 71. Kc5 Qc4+ 72. Kb6 Kd5 73. Bh6 Qc6+ 74. Ka7 Qb5 75. Bg7 Nc6+ 76. Ka8 Qb8#) 56. Kb4 {[%emt 0:00:41] Black is clearly winning.} Nxg4 {[%emt 0:00:04]} ({Inferior is} 56... Kxg5 57. Kc5 $15) 57. Bg3 {[%emt 0:00:21] [#]} Kf5 $1 {[%emt 0:00:07]} 58. Kc5 {[%emt 0:01:42]} Nxe5 {[%emt 0:00:06]} 59. Kd6 {[%emt 0:00:05]} Nf3 {[%emt 0:00:06] Weighted Error Value: White=0.91/Black=0.30} (59... Nd3 $142 60. Ke7 Kg6) 0-1

[Event "8th Svetozar Gligoric Cup 2022"]
[Site "Paracin"]
[Date "2022.06.02"]
[Round "4.11"]
[White "Ivanovic, Marko"]
[Black "Alimpic, Aleksa"]
[Result "1/2-1/2"]
[ECO "A07"]
[WhiteElo "2294"]
[BlackElo "2234"]
[Annotator "TA"]
[PlyCount "47"]
[EventDate "2022.05.31"]
[EventType "team-tourn"]
[EventCountry "SRB"]
[SourceTitle "playchess.com"]
[Source "ChessBase"]
[SourceQuality "1"]
[TimeControl "40/5400+30:900+30"]

{[%evp 9,47,0,35,-35,-39,-48,-40,-44,-37,-41,-37,-43,-34,-34,-27,-44,90,84,85,0,0,-60,-20,-3,14,-22,-31,-70,-14,-14,-15,-14,-7,-16,-20,-16,0,0,-3,-2]} 1. Nf3 {[%emt 0:04:03]} d5 {[%emt 0:00:02]} 2. g3 {[%emt 0:00:13]} Nd7 {[%emt 0:00:05]} 3. Bg2 {[%emt 0:00:12]} e5 {[%emt 0:00:09]} 4. d3 {[%emt 0:00:17]} Ngf6 {[%emt 0:00:10]} 5. O-O {[%emt 0:00:07]} Bc5 {[%emt 0:00:02] [#]} 6. Nbd2 {[%emt 0:00:23] A07: Réti Opening: New York and Capablanca Systems.} (6. Nxe5 $1 $14 Nxe5 7. d4) 6... e4 $15 {[%emt 0:00:23]} 7. dxe4 {[%emt 0:05:24]} dxe4 {[%emt 0:00:07] [#]} 8. Nh4 $146 {[%emt 0:00:14] Black is slightly better.} ({Predecessor:} 8. Ng5 e3 9. Nde4 exf2+ 10. Kh1 Bb6 11. Nxf6+ Qxf6 12. Ne4 Qf5 13. e3 O-O 14. Rxf2 {0-1 (23) Esposito,P (1746)-Messina,E (2218) Napoli 2016}) 8... e3 {[%emt 0:00:12]} 9. fxe3 {[%emt 0:00:14]} Bxe3+ {[%emt 0:00:24]} 10. Kh1 {[%emt 0:00:05] Hoping for Nf5.} O-O {[%emt 0:00:06]} 11. Nf5 {[%emt 0:00:29]} Ng4 {[%emt 0:01:04] ...Nf2+ is the strong threat.} 12. Ne4 {[%emt 0:00:47] Prevents Nf2+.} Bb6 {[%emt 0:08:29]} (12... Bxc1 $15 {keeps the upper hand.} 13. Qxc1 (13. Rxc1 g6 $17) 13... Ndf6) 13. h3 $16 {[%emt 0:19:18]} Nge5 {[%emt 0:00:40]} 14. Bf4 {[%emt 0:03:53] White is much more active. The black rooks are badly placed.} (14. b3 $16) 14... Ng6 $11 {[%emt 0:05:04]} 15. Qd5 {[%emt 0:02:39]} ({Better is} 15. c4 $11) 15... c6 {[%emt 0:13:53]} 16. Qd6 $132 {[%emt 0:01:02][%mdl 2048] White puts up resistance} Nxf4 {[%emt 0:02:23]} (16... Nb8 {seems wilder.} 17. Bg5 f6 18. Qxd8 Bxd8 19. Nfd6 Na6) 17. gxf4 {[%emt 0:01:20] [#]} ({Much worse is} 17. Rxf4 Bc7 18. Qa3 (18. Qd4 $2 Be5 $19) 18... Bxf4 19. gxf4 Nb6 $17) (17. Qxf4 $5 {[%cal Ra1d1]} f6 18. Rad1 $14) 17... Nc5 $1 {[%emt 0:07:54]} 18. Nxc5 {[%emt 0:05:18] Threatens to win with Ne7+.} (18. Ne7+ Kh8) 18... Qxd6 {[%emt 0:00:12]} (18... Bxf5 $15 19. Nxb7 Qc8 20. Qxc6 Bxh3 21. Qxc8 Bxg2+ 22. Kxg2 Raxc8) 19. Nxd6 {[%emt 0:00:04] The position is equal.} Bxc5 {[%emt 0:00:06] A strong pair of Bishops.} 20. Rad1 {[%emt 0:00:11]} Rd8 {[%emt 0:03:08]} 21. Ne4 {[%emt 0:00:11]} Rxd1 {[%emt 0:00:58]} 22. Rxd1 {[%emt 0:00:10]} Be7 {[%emt 0:00:03]} 23. Nd6 {[%emt 0:30:22]} Kf8 {[%emt 0:01:09]} 24. Nxc8 {[%emt 0:04:34] Weighted Error Value: White=0.23 (precise) /Black=0.26 (precise)} 1/2-1/2

[Event "8th Svetozar Gligoric Cup 2022"]
[Site "Paracin"]
[Date "2022.06.02"]
[Round "4.12"]
[White "Dedijer, Zarko"]
[Black "Brankovic, Vladislav"]
[Result "0-1"]
[ECO "D02"]
[WhiteElo "1884"]
[BlackElo "2114"]
[Annotator "TA"]
[PlyCount "48"]
[EventDate "2022.05.31"]
[EventType "team-tourn"]
[EventCountry "SRB"]
[SourceTitle "playchess.com"]
[Source "ChessBase"]
[SourceQuality "1"]
[TimeControl "40/5400+30:900+30"]

{[%evp 9,48,3,0,-18,-15,-21,5,-23,-20,-35,-29,-53,-40,-39,-20,-32,-35,-21,-7,-37,-37,-41,-17,-18,-13,-51,-60,-110,-112,-116,-114,-114,-111,-124,-116,-123,-116,-790,-790,-765,-759]} 1. d4 {[%emt 0:00:03]} d5 {[%emt 0:00:03]} 2. Nf3 {[%emt 0:00:06]} Nf6 {[%emt 0:01:50]} 3. Bf4 {[%emt 0:00:13]} Bf5 {[%emt 0:01:28]} 4. e3 {[%emt 0:00:20]} e6 {[%emt 0:00:07]} 5. c3 {[%emt 0:00:30]} Bd6 {[%emt 0:01:35]} 6. Bg3 {[%emt 0:00:56] D02: 1 d4 d5 2 Nf3 sidelines, including 2...Nf6 3 g3 and 2...Nf6 3 Bf4.} O-O {[%emt 0:02:02]} 7. Nbd2 {[%emt 0:00:26]} Re8 {[%emt 0:01:48] [#]} 8. Qb3 $146 {[%emt 0:01:28] The position is equal.} ({Predecessor:} 8. Ne5 Nbd7 9. f4 Nxe5 10. fxe5 Ne4 11. Nxe4 Bxe4 12. exd6 cxd6 13. Bd3 Bxg2 14. Rg1 {1-0 (26) Skytte,R-Kryshtafor,M (1241) Tornelo INT 2021}) 8... b6 {[%emt 0:02:54]} 9. c4 {[%emt 0:02:08]} c5 {[%emt 0:02:40]} 10. Bd3 {[%emt 0:00:31]} Bxd3 {[%emt 0:00:26]} 11. Qxd3 {[%emt 0:00:07]} Nc6 {[%emt 0:00:29]} 12. Bxd6 {[%emt 0:03:25]} Qxd6 {[%emt 0:00:22]} 13. O-O {[%emt 0:00:14]} Rad8 {[%emt 1:21:16]} 14. Rfd1 {[%emt 0:02:10]} cxd4 {[%emt 0:00:00]} 15. exd4 {[%emt 0:04:15]} e5 {[%emt 0:00:00]} 16. dxe5 {[%emt 0:01:23]} Nxe5 {[%emt 0:00:00]} 17. Nxe5 {[%emt 0:00:13]} Qxe5 {[%emt 0:00:00]} 18. Nf3 {[%emt 0:00:21]} (18. Qb3) (18. Qb3 $15) 18... Qxb2 $17 {[%emt 0:00:00]} 19. Rdb1 {[%emt 0:08:29]} dxc4 {[%emt 0:00:00]} 20. Qxc4 {[%emt 0:02:29]} Qe2 {[%emt 0:00:00] Black is much more active.} 21. Qc7 {[%emt 0:01:41]} Rd7 $36 {[%emt 0:00:00][%mdl 2048] Black has strong initiative.} 22. Qc6 {[%emt 0:00:36]} Qe4 {[%emt 0:00:00]} 23. Qxd7 {[%emt 0:05:15][%mdl 8192] [#]} Nxd7 $19 {[%emt 0:00:00]} 24. Re1 {[%emt 0:00:08]} Qa8 {[%emt 0:00:00] Weighted Error Value: White=0.61/Black=0.06 (flawless)} 0-1